[Event "Titled Tuesday Blitz November 29 Early 2022"]
[White "Zivkovic, Nemanja"]
[Black "Jiganchine, Roman"]
[WhiteFideId "942154"]
[BlackFideId "2603667"]
[WhiteElo "2372"]
[BlackElo "2302"]
[Result "1-0"]
[Round "02"]
[TimeControl "180+1"]
[Date "2022.11.30"]
[WhiteClock "0:01:17"]
[BlackClock "0:00:33"]

1. b3 {[%clk 0:02:53]}  e5 {[%clk 0:02:51]} 2. Bb2 {[%clk 0:02:52]}  f6 {[%clk 0:02:49]} 3. e4 {[%clk 0:02:48]}  c6 {[%clk 0:02:46]} 4. d4 {[%clk 0:02:47]}  d6 {[%clk 0:02:42]} 5. Nd2 {[%clk 0:02:42]}  a5 {[%clk 0:02:37]} 6. a4 {[%clk 0:02:40]}  Nd7 {[%clk 0:02:30]} 7. Bd3 {[%clk 0:02:35]}  g6 {[%clk 0:02:24]} 8. Ne2 {[%clk 0:02:32]}  Bg7 {[%clk 0:02:24]} 9. O-O {[%clk 0:02:30]}  Ne7 {[%clk 0:02:23]} 10. Nc4 {[%clk 0:02:27]}  Qc7 {[%clk 0:02:22]} 11. Ba3 {[%clk 0:02:23]}  c5 {[%clk 0:02:14]} 12. dxe5 {[%clk 0:02:11]}  Nxe5 {[%clk 0:02:10]} 13. Nxd6+ {[%clk 0:01:58]}  Kf8 {[%clk 0:01:54]} 14. Nb5 {[%clk 0:01:54]}  Qc6 {[%clk 0:01:47]} 15. Nf4 {[%clk 0:01:29]}  Bg4 {[%clk 0:01:17]} 16. f3 {[%clk 0:01:28]}  Bd7 {[%clk 0:01:16]} 17. Be2 {[%clk 0:01:26]}  Bh6 {[%clk 0:01:08]} 18. Nd3 {[%clk 0:01:26]}  Be3+ {[%clk 0:01:06]} 19. Kh1 {[%clk 0:01:25]}  Kg7 {[%clk 0:01:03]} 20. f4 {[%clk 0:01:21]}  Nxd3 {[%clk 0:00:49]} 21. Qxd3 {[%clk 0:01:22]}  Bd4 {[%clk 0:00:40]} 22. Nxd4 {[%clk 0:01:22]}  cxd4 {[%clk 0:00:40]} 23. Bxe7 {[%clk 0:01:23]}  Rhe8 {[%clk 0:00:36]} 24. Ba3 {[%clk 0:01:20]}  Rac8 {[%clk 0:00:36]} 25. Bf3 {[%clk 0:01:18]}  Qxc2 {[%clk 0:00:33]} 26. Qxd4 {[%clk 0:01:18]}  Be6 {[%clk 0:00:33]} 27. Bb2 {[%clk 0:01:17]} 1-0


[Site "https://www.chess.com"]

[Event "Titled Tuesday Blitz November 29 Early 2022"]
[White "sabkeIXO"]
[Black "Antonova, Nadezhda"]
[BlackFideId "14700182"]
[WhiteElo "2469"]
[BlackElo "1813"]
[Result "1-0"]
[Round "02"]
[TimeControl "180+1"]
[Date "2022.11.30"]
[WhiteClock "0:00:43"]
[BlackClock "0:00:08"]

1. e4 {[%clk 0:03:00]}  c5 {[%clk 0:02:58]} 2. Nc3 {[%clk 0:03:00]}  Nc6 {[%clk 0:02:57]} 3. f4 {[%clk 0:02:59]}  e6 {[%clk 0:02:54]} 4. Nf3 {[%clk 0:02:59]}  d5 {[%clk 0:02:54]} 5. Bb5 {[%clk 0:02:59]}  Ne7 {[%clk 0:02:54]} 6. d3 {[%clk 0:02:57]}  a6 {[%clk 0:02:53]} 7. Bxc6+ {[%clk 0:02:57]}  Nxc6 {[%clk 0:02:53]} 8. O-O {[%clk 0:02:57]}  Be7 {[%clk 0:02:52]} 9. f5 {[%clk 0:02:47]}  O-O {[%clk 0:02:47]} 10. Bf4 {[%clk 0:02:33]}  exf5 {[%clk 0:02:35]} 11. Nxd5 {[%clk 0:02:20]}  fxe4 {[%clk 0:02:32]} 12. dxe4 {[%clk 0:02:21]}  Be6 {[%clk 0:02:30]} 13. c4 {[%clk 0:02:02]}  Rc8 {[%clk 0:02:22]} 14. Qb3 {[%clk 0:01:53]}  Nd4 {[%clk 0:02:09]} 15. Nxd4 {[%clk 0:01:45]}  cxd4 {[%clk 0:02:08]} 16. Qxb7 {[%clk 0:01:45]}  Bxd5 {[%clk 0:01:52]} 17. cxd5 {[%clk 0:01:43]}  Rc2 {[%clk 0:01:51]} 18. Rad1 {[%clk 0:01:39]}  Bg5 {[%clk 0:01:36]} 19. Qb3 {[%clk 0:01:27]}  Re2 {[%clk 0:01:22]} 20. Qf3 {[%clk 0:01:13]}  Rxb2 {[%clk 0:01:19]} 21. Rxd4 {[%clk 0:01:08]}  Bxf4 {[%clk 0:01:00]} 22. Qxf4 {[%clk 0:01:09]}  Qb6 {[%clk 0:00:56]} 23. Qe3 {[%clk 0:01:07]}  Rxa2 {[%clk 0:00:51]} 24. Kh1 {[%clk 0:01:02]}  Qb2 {[%clk 0:00:46]} 25. Rg1 {[%clk 0:01:00]}  h6 {[%clk 0:00:35]} 26. d6 {[%clk 0:00:59]}  Rd8 {[%clk 0:00:29]} 27. e5 {[%clk 0:00:56]}  Qb6 {[%clk 0:00:10]} 28. e6 {[%clk 0:00:42]}  fxe6 {[%clk 0:00:08]} 29. Qxe6+ {[%clk 0:00:43]} 1-0


[Site "https://www.chess.com"]

[Event "Titled Tuesday Blitz November 29 Early 2022"]
[White "Akbas, Umut Ata"]
[Black "Bettalli, Francesco"]
[WhiteFideId "44572646"]
[BlackFideId "2816453"]
[WhiteElo "2192"]
[BlackElo "2216"]
[Result "1-0"]
[Round "03"]
[TimeControl "180+1"]
[Date "2022.11.30"]
[WhiteClock "0:00:11"]
[BlackClock "0:00:02"]

1. d4 {[%clk 0:03:00]}  Nf6 {[%clk 0:02:57]} 2. c4 {[%clk 0:03:01]}  g6 {[%clk 0:02:58]} 3. Nc3 {[%clk 0:03:01]}  d6 {[%clk 0:02:58]} 4. Nf3 {[%clk 0:03:00]}  Bg7 {[%clk 0:02:59]} 5. Bg5 {[%clk 0:03:00]}  O-O {[%clk 0:02:55]} 6. e3 {[%clk 0:03:00]}  Nbd7 {[%clk 0:02:26]} 7. Be2 {[%clk 0:02:58]}  c5 {[%clk 0:02:26]} 8. O-O {[%clk 0:02:57]}  cxd4 {[%clk 0:02:21]} 9. exd4 {[%clk 0:02:57]}  b6 {[%clk 0:02:19]} 10. Re1 {[%clk 0:02:51]}  Bb7 {[%clk 0:02:19]} 11. Bf1 {[%clk 0:02:48]}  Rc8 {[%clk 0:02:19]} 12. h3 {[%clk 0:02:45]}  h6 {[%clk 0:02:19]} 13. Bh4 {[%clk 0:02:45]}  g5 {[%clk 0:02:19]} 14. Bg3 {[%clk 0:02:45]}  Nh5 {[%clk 0:02:18]} 15. Bh2 {[%clk 0:02:45]}  Nf4 {[%clk 0:02:10]} 16. Bxf4 {[%clk 0:02:34]}  gxf4 {[%clk 0:02:10]} 17. Nd5 {[%clk 0:02:24]}  e5 {[%clk 0:01:42]} 18. dxe5 {[%clk 0:02:13]}  Nxe5 {[%clk 0:01:36]} 19. Nd4 {[%clk 0:01:58]}  Bxd5 {[%clk 0:01:29]} 20. cxd5 {[%clk 0:01:57]}  Qg5 {[%clk 0:01:29]} 21. Kh1 {[%clk 0:01:43]}  Rc5 {[%clk 0:01:23]} 22. Nb3 {[%clk 0:01:28]}  Rc7 {[%clk 0:01:19]} 23. Nd2 {[%clk 0:01:18]}  Rfc8 {[%clk 0:01:11]} 24. Ba6 {[%clk 0:01:10]}  Re8 {[%clk 0:01:05]} 25. Nf3 {[%clk 0:01:05]}  Qg6 {[%clk 0:01:00]} 26. Bd3 {[%clk 0:01:04]}  Qh5 {[%clk 0:00:36]} 27. Nd4 {[%clk 0:00:41]}  Qxd1 {[%clk 0:00:20]} 28. Raxd1 {[%clk 0:00:41]}  Rec8 {[%clk 0:00:19]} 29. Ba6 {[%clk 0:00:38]}  Rd8 {[%clk 0:00:19]} 30. b3 {[%clk 0:00:33]}  Rc5 {[%clk 0:00:19]} 31. Nf5 {[%clk 0:00:33]}  Bf8 {[%clk 0:00:15]} 32. Re4 {[%clk 0:00:20]}  f3 {[%clk 0:00:13]} 33. gxf3 {[%clk 0:00:20]}  Rc2 {[%clk 0:00:13]} 34. Rg1+ {[%clk 0:00:18]}  Kh7 {[%clk 0:00:12]} 35. Re3 {[%clk 0:00:16]}  Rxf2 {[%clk 0:00:12]} 36. Bb5 {[%clk 0:00:11]}  Nxf3 {[%clk 0:00:10]} 37. Rg2 {[%clk 0:00:11]}  Rf1+ {[%clk 0:00:10]} 38. Bxf1 {[%clk 0:00:10]}  Ne5 {[%clk 0:00:09]} 39. Nd4 {[%clk 0:00:10]}  Rc8 {[%clk 0:00:07]} 40. Nc6 {[%clk 0:00:11]}  Nxc6 {[%clk 0:00:07]} 41. Bd3+ {[%clk 0:00:11]}  Kh8 {[%clk 0:00:06]} 42. dxc6 {[%clk 0:00:09]}  Rxc6 {[%clk 0:00:07]} 43. Reg3 {[%clk 0:00:10]}  Rc1+ {[%clk 0:00:05]} 44. Kh2 {[%clk 0:00:10]}  Be7 {[%clk 0:00:02]} 45. Rg8# {[%clk 0:00:11]} 1-0


[Site "https://www.chess.com"]

[Event "Titled Tuesday Blitz November 29 Early 2022"]
[White "Atakhan, Abtin"]
[Black "Abasov, Nijat"]
[WhiteFideId "22502203"]
[BlackFideId "13402960"]
[WhiteElo "2298"]
[BlackElo "2546"]
[Result "0-1"]
[Round "03"]
[TimeControl "180+1"]
[Date "2022.11.30"]
[WhiteClock "0:00:01"]
[BlackClock "0:00:16"]

1. c4 {[%clk 0:03:00]}  c5 {[%clk 0:02:58]} 2. g3 {[%clk 0:03:00]}  Nc6 {[%clk 0:02:58]} 3. Bg2 {[%clk 0:03:00]}  g6 {[%clk 0:02:59]} 4. Nc3 {[%clk 0:03:00]}  Bg7 {[%clk 0:02:58]} 5. d3 {[%clk 0:03:01]}  d6 {[%clk 0:02:59]} 6. Qd2 {[%clk 0:02:57]}  e6 {[%clk 0:02:57]} 7. b3 {[%clk 0:02:57]}  Nge7 {[%clk 0:02:58]} 8. Bb2 {[%clk 0:02:58]}  b6 {[%clk 0:02:57]} 9. e3 {[%clk 0:02:53]}  Bb7 {[%clk 0:02:55]} 10. Nge2 {[%clk 0:02:53]}  h5 {[%clk 0:02:51]} 11. h4 {[%clk 0:02:52]}  Qd7 {[%clk 0:02:48]} 12. d4 {[%clk 0:02:47]}  cxd4 {[%clk 0:02:45]} 13. exd4 {[%clk 0:02:45]}  Nxd4 {[%clk 0:02:42]} 14. Bxb7 {[%clk 0:02:32]}  Qxb7 {[%clk 0:02:43]} 15. O-O-O {[%clk 0:02:33]}  Nxe2+ {[%clk 0:02:37]} 16. Nxe2 {[%clk 0:02:30]}  Bxb2+ {[%clk 0:02:33]} 17. Qxb2 {[%clk 0:02:31]}  O-O {[%clk 0:02:33]} 18. g4 {[%clk 0:02:29]}  Qf3 {[%clk 0:02:16]} 19. gxh5 {[%clk 0:02:28]}  Qxh5 {[%clk 0:02:16]} 20. Ng3 {[%clk 0:02:24]}  Qh6+ {[%clk 0:02:13]} 21. Kb1 {[%clk 0:02:24]}  d5 {[%clk 0:02:09]} 22. Qf6 {[%clk 0:02:03]}  Rae8 {[%clk 0:02:03]} 23. h5 {[%clk 0:01:54]}  Qg7 {[%clk 0:02:03]} 24. Qf3 {[%clk 0:01:43]}  g5 {[%clk 0:02:01]} 25. h6 {[%clk 0:01:43]}  Qh7+ {[%clk 0:02:00]} 26. Kb2 {[%clk 0:01:39]}  f5 {[%clk 0:01:54]} 27. cxd5 {[%clk 0:01:35]}  Nxd5 {[%clk 0:01:55]} 28. Rh5 {[%clk 0:01:22]}  Qh8+ {[%clk 0:01:50]} 29. Ka3 {[%clk 0:01:22]}  Qf6 {[%clk 0:01:50]} 30. Ne2 {[%clk 0:00:52]}  Kh7 {[%clk 0:01:46]} 31. Nd4 {[%clk 0:00:49]}  Rd8 {[%clk 0:01:10]} 32. Rhh1 {[%clk 0:00:36]}  e5 {[%clk 0:00:42]} 33. Nb5 {[%clk 0:00:20]}  e4 {[%clk 0:00:42]} 34. Qe2 {[%clk 0:00:18]}  a6 {[%clk 0:00:37]} 35. Nd4 {[%clk 0:00:06]}  Nc3 {[%clk 0:00:37]} 36. Qc4 {[%clk 0:00:06]}  Nxd1 {[%clk 0:00:28]} 37. Rxd1 {[%clk 0:00:07]}  Rd7 {[%clk 0:00:18]} 38. Rd2 {[%clk 0:00:03]}  Rfd8 {[%clk 0:00:17]} 39. Ne6 {[%clk 0:00:01]}  Rxd2 {[%clk 0:00:16]} 40. Nxg5+ {[%clk 0:00:01]}  Qxg5 {[%clk 0:00:15]} 41. Qf7+ {[%clk 0:00:01]}  Kxh6 {[%clk 0:00:16]} 42. Qe6+ {[%clk 0:00:01]}  Qg6 {[%clk 0:00:16]} 0-1


[Site "https://www.chess.com"]

[Event "Titled Tuesday Blitz November 29 Early 2022"]
[White "Aung Thant Zin"]
[Black "Mayaud, Raphael"]
[WhiteFideId "13000063"]
[BlackFideId "627151"]
[WhiteElo "2278"]
[BlackElo "2191"]
[Result "0-1"]
[Round "03"]
[TimeControl "180+1"]
[Date "2022.11.30"]
[WhiteClock "0:00:04"]
[BlackClock "0:00:52"]

1. e4 {[%clk 0:03:00]}  d5 {[%clk 0:02:54]} 2. exd5 {[%clk 0:03:00]}  Qxd5 {[%clk 0:02:41]} 3. Nc3 {[%clk 0:02:59]}  Qa5 {[%clk 0:02:39]} 4. g3 {[%clk 0:02:59]}  c6 {[%clk 0:02:39]} 5. Bg2 {[%clk 0:02:59]}  Nf6 {[%clk 0:02:39]} 6. Nge2 {[%clk 0:03:00]}  Bf5 {[%clk 0:02:31]} 7. O-O {[%clk 0:02:59]}  e6 {[%clk 0:02:31]} 8. d3 {[%clk 0:02:59]}  Be7 {[%clk 0:02:30]} 9. Bd2 {[%clk 0:02:59]}  Qd8 {[%clk 0:02:29]} 10. a4 {[%clk 0:02:57]}  a5 {[%clk 0:02:27]} 11. h3 {[%clk 0:02:53]}  h6 {[%clk 0:02:26]} 12. Re1 {[%clk 0:02:51]}  O-O {[%clk 0:02:14]} 13. Ne4 {[%clk 0:02:37]}  Nbd7 {[%clk 0:02:13]} 14. Bc3 {[%clk 0:02:34]}  Bb4 {[%clk 0:02:10]} 15. Nxf6+ {[%clk 0:02:18]}  Nxf6 {[%clk 0:02:09]} 16. Nd4 {[%clk 0:02:18]}  Bg6 {[%clk 0:02:05]} 17. Qd2 {[%clk 0:02:08]}  Bc5 {[%clk 0:01:54]} 18. Nb3 {[%clk 0:02:01]}  Bb6 {[%clk 0:01:54]} 19. Rad1 {[%clk 0:01:38]}  Nd5 {[%clk 0:01:54]} 20. Be5 {[%clk 0:01:23]}  Qd7 {[%clk 0:01:38]} 21. g4 {[%clk 0:00:51]}  Rfe8 {[%clk 0:01:37]} 22. Bg3 {[%clk 0:00:23]}  Rad8 {[%clk 0:01:29]} 23. Qc1 {[%clk 0:00:22]}  Bc7 {[%clk 0:01:25]} 24. Kh2 {[%clk 0:00:20]}  Bxg3+ {[%clk 0:01:24]} 25. fxg3 {[%clk 0:00:20]}  b5 {[%clk 0:01:19]} 26. axb5 {[%clk 0:00:17]}  cxb5 {[%clk 0:01:19]} 27. Nxa5 {[%clk 0:00:17]}  Rc8 {[%clk 0:01:17]} 28. Nb3 {[%clk 0:00:17]}  Nb4 {[%clk 0:01:15]} 29. Rd2 {[%clk 0:00:13]}  Rc7 {[%clk 0:01:14]} 30. Qd1 {[%clk 0:00:10]}  Rec8 {[%clk 0:01:13]} 31. c3 {[%clk 0:00:09]}  Nd5 {[%clk 0:01:12]} 32. Nd4 {[%clk 0:00:06]}  b4 {[%clk 0:01:10]} 33. c4 {[%clk 0:00:05]}  Nc3 {[%clk 0:00:51]} 34. bxc3 {[%clk 0:00:04]}  bxc3 {[%clk 0:00:52]} 0-1


[Site "https://www.chess.com"]

[Event "Titled Tuesday Blitz November 29 Early 2022"]
[White "Barria Zuniga, Daniel"]
[Black "Le, Tuan Minh"]
[WhiteFideId "3400816"]
[BlackFideId "12401153"]
[WhiteElo "2414"]
[BlackElo "2530"]
[Result "0-1"]
[Round "03"]
[TimeControl "180+1"]
[Date "2022.11.30"]
[WhiteClock "0:00:01"]
[BlackClock "0:00:09"]

1. c4 {[%clk 0:03:00]}  c6 {[%clk 0:02:59]} 2. g3 {[%clk 0:03:00]}  g6 {[%clk 0:02:58]} 3. Bg2 {[%clk 0:03:00]}  Bg7 {[%clk 0:02:59]} 4. Nf3 {[%clk 0:03:00]}  Nf6 {[%clk 0:02:59]} 5. O-O {[%clk 0:03:00]}  O-O {[%clk 0:02:59]} 6. b3 {[%clk 0:02:57]}  d5 {[%clk 0:02:58]} 7. Bb2 {[%clk 0:02:58]}  a5 {[%clk 0:02:58]} 8. d3 {[%clk 0:02:44]}  Bg4 {[%clk 0:02:57]} 9. h3 {[%clk 0:02:42]}  Bxf3 {[%clk 0:02:54]} 10. Bxf3 {[%clk 0:02:42]}  e6 {[%clk 0:02:53]} 11. Nd2 {[%clk 0:02:40]}  Qe7 {[%clk 0:02:52]} 12. Qc2 {[%clk 0:02:39]}  Nbd7 {[%clk 0:02:49]} 13. Bg2 {[%clk 0:02:38]}  h5 {[%clk 0:02:49]} 14. a3 {[%clk 0:02:34]}  e5 {[%clk 0:02:43]} 15. cxd5 {[%clk 0:02:25]}  cxd5 {[%clk 0:02:43]} 16. Rfc1 {[%clk 0:02:24]}  Rfd8 {[%clk 0:02:31]} 17. Qc7 {[%clk 0:02:21]}  b6 {[%clk 0:02:23]} 18. Nf3 {[%clk 0:02:18]}  Ne8 {[%clk 0:01:50]} 19. Qc6 {[%clk 0:02:09]}  e4 {[%clk 0:01:47]} 20. Nd4 {[%clk 0:02:07]}  exd3 {[%clk 0:01:08]} 21. exd3 {[%clk 0:01:12]}  Nc5 {[%clk 0:00:59]} 22. Qb5 {[%clk 0:01:06]}  Qd7 {[%clk 0:00:49]} 23. Rxc5 {[%clk 0:00:15]}  bxc5 {[%clk 0:00:41]} 24. Qxc5 {[%clk 0:00:16]}  a4 {[%clk 0:00:21]} 25. b4 {[%clk 0:00:14]}  Rac8 {[%clk 0:00:21]} 26. Qa5 {[%clk 0:00:13]}  h4 {[%clk 0:00:18]} 27. g4 {[%clk 0:00:11]}  Nc7 {[%clk 0:00:18]} 28. b5 {[%clk 0:00:10]}  Nxb5 {[%clk 0:00:16]} 29. Nxb5 {[%clk 0:00:05]}  Bxb2 {[%clk 0:00:17]} 30. Rb1 {[%clk 0:00:05]}  Rc1+ {[%clk 0:00:17]} 31. Rxc1 {[%clk 0:00:04]}  Bxc1 {[%clk 0:00:18]} 32. Qxa4 {[%clk 0:00:04]}  Re8 {[%clk 0:00:14]} 33. Qd1 {[%clk 0:00:01]}  Bb2 {[%clk 0:00:09]} 0-1


[Site "https://www.chess.com"]

[Event "Titled Tuesday Blitz November 29 Early 2022"]
[White "Bashirli, Saadat"]
[Black "Ilkhomi, Jaloliddin"]
[WhiteFideId "13429990"]
[BlackFideId "14700948"]
[WhiteElo "1408"]
[BlackElo "2045"]
[Result "0-1"]
[Round "03"]
[TimeControl "180+1"]
[Date "2022.11.30"]
[WhiteClock "0:00:34"]
[BlackClock "0:00:46"]

1. d4 {[%clk 0:03:00]}  Nf6 {[%clk 0:02:54]} 2. c4 {[%clk 0:03:00]}  e6 {[%clk 0:02:53]} 3. Nc3 {[%clk 0:03:01]}  Bb4 {[%clk 0:02:53]} 4. e3 {[%clk 0:03:01]}  O-O {[%clk 0:02:47]} 5. Bd3 {[%clk 0:03:00]}  d5 {[%clk 0:02:42]} 6. a3 {[%clk 0:02:58]}  Bxc3+ {[%clk 0:02:40]} 7. bxc3 {[%clk 0:02:59]}  b6 {[%clk 0:02:41]} 8. cxd5 {[%clk 0:02:56]}  exd5 {[%clk 0:02:40]} 9. Ne2 {[%clk 0:02:55]}  c5 {[%clk 0:02:39]} 10. O-O {[%clk 0:02:54]}  Ba6 {[%clk 0:02:39]} 11. Bc2 {[%clk 0:02:50]}  Nc6 {[%clk 0:02:38]} 12. f3 {[%clk 0:02:42]}  Re8 {[%clk 0:02:33]} 13. Re1 {[%clk 0:02:36]}  Rc8 {[%clk 0:02:28]} 14. Bb1 {[%clk 0:02:34]}  Ne7 {[%clk 0:02:12]} 15. Ra2 {[%clk 0:02:23]}  Ng6 {[%clk 0:02:09]} 16. Ng3 {[%clk 0:02:20]}  Qc7 {[%clk 0:01:47]} 17. Rc2 {[%clk 0:02:10]}  Bc4 {[%clk 0:01:41]} 18. Rb2 {[%clk 0:02:03]}  cxd4 {[%clk 0:01:32]} 19. cxd4 {[%clk 0:02:01]}  Ba6 {[%clk 0:01:24]} 20. Rc2 {[%clk 0:01:59]}  Qd7 {[%clk 0:01:22]} 21. Rxc8 {[%clk 0:01:46]}  Qxc8 {[%clk 0:01:23]} 22. Bb2 {[%clk 0:01:29]}  Qc4 {[%clk 0:01:17]} 23. Nf5 {[%clk 0:01:25]}  Qc6 {[%clk 0:01:12]} 24. Qd2 {[%clk 0:01:19]}  Ne7 {[%clk 0:01:11]} 25. Rc1 {[%clk 0:01:16]}  Qd7 {[%clk 0:01:11]} 26. Nxe7+ {[%clk 0:01:11]}  Qxe7 {[%clk 0:01:12]} 27. Kf2 {[%clk 0:01:08]}  Rc8 {[%clk 0:01:04]} 28. Rxc8+ {[%clk 0:01:06]}  Bxc8 {[%clk 0:01:05]} 29. Qc2 {[%clk 0:01:06]}  Be6 {[%clk 0:01:04]} 30. Qc6 {[%clk 0:01:03]}  g6 {[%clk 0:01:02]} 31. Bd3 {[%clk 0:01:02]}  Bf5 {[%clk 0:00:57]} 32. Bxf5 {[%clk 0:00:54]}  gxf5 {[%clk 0:00:58]} 33. Qc8+ {[%clk 0:00:55]}  Kg7 {[%clk 0:00:55]} 34. Qxf5 {[%clk 0:00:55]}  h6 {[%clk 0:00:55]} 35. Qc2 {[%clk 0:00:54]}  Qd6 {[%clk 0:00:55]} 36. g3 {[%clk 0:00:50]}  Qe6 {[%clk 0:00:55]} 37. Qc7 {[%clk 0:00:47]}  Qf5 {[%clk 0:00:50]} 38. Qc3 {[%clk 0:00:37]}  Ne4+ {[%clk 0:00:50]} 39. Kg2 {[%clk 0:00:31]}  Nxc3 {[%clk 0:00:51]} 40. Bxc3 {[%clk 0:00:32]}  Qc2+ {[%clk 0:00:51]} 41. Kh3 {[%clk 0:00:33]}  Qxc3 {[%clk 0:00:52]} 42. e4 {[%clk 0:00:33]}  Qxd4 {[%clk 0:00:47]} 43. exd5 {[%clk 0:00:33]}  Qxd5 {[%clk 0:00:47]} 44. Kg2 {[%clk 0:00:34]}  Qd2+ {[%clk 0:00:47]} 45. Kh3 {[%clk 0:00:34]}  Qe3 {[%clk 0:00:47]} 46. Kg2 {[%clk 0:00:34]}  Qe2+ {[%clk 0:00:48]} 47. Kh3 {[%clk 0:00:33]}  Qxf3 {[%clk 0:00:48]} 48. a4 {[%clk 0:00:33]}  h5 {[%clk 0:00:47]} 49. a5 {[%clk 0:00:33]}  bxa5 {[%clk 0:00:46]} 50. Kh4 {[%clk 0:00:34]}  Qg4# {[%clk 0:00:46]} 0-1


[Site "https://www.chess.com"]

[Event "Titled Tuesday Blitz November 29 Early 2022"]
[White "Baskakov, Egor"]
[Black "Delorme, Alban"]
[WhiteFideId "24197866"]
[BlackFideId "623636"]
[WhiteElo "2211"]
[BlackElo "2197"]
[Result "1-0"]
[Round "03"]
[TimeControl "180+1"]
[Date "2022.11.30"]
[WhiteClock "0:01:19"]
[BlackClock "0:00:51"]

1. e4 {[%clk 0:03:00]}  c5 {[%clk 0:03:00]} 2. Nf3 {[%clk 0:03:00]}  Nc6 {[%clk 0:03:00]} 3. Nc3 {[%clk 0:03:00]}  d6 {[%clk 0:03:00]} 4. d4 {[%clk 0:03:00]}  cxd4 {[%clk 0:03:01]} 5. Nxd4 {[%clk 0:03:01]}  Nf6 {[%clk 0:03:01]} 6. g3 {[%clk 0:03:00]}  g6 {[%clk 0:03:01]} 7. Nde2 {[%clk 0:03:00]}  Bg7 {[%clk 0:03:01]} 8. Bg2 {[%clk 0:03:00]}  O-O {[%clk 0:03:02]} 9. h3 {[%clk 0:03:00]}  Be6 {[%clk 0:02:59]} 10. O-O {[%clk 0:03:00]}  Rc8 {[%clk 0:03:00]} 11. a4 {[%clk 0:03:00]}  Nb4 {[%clk 0:02:55]} 12. Be3 {[%clk 0:02:59]}  Qd7 {[%clk 0:02:53]} 13. Kh2 {[%clk 0:02:58]}  d5 {[%clk 0:02:41]} 14. e5 {[%clk 0:02:55]}  Ne8 {[%clk 0:02:40]} 15. f4 {[%clk 0:02:55]}  f6 {[%clk 0:02:26]} 16. exf6 {[%clk 0:02:50]}  Nxf6 {[%clk 0:02:23]} 17. Bxa7 {[%clk 0:02:46]}  Ne4 {[%clk 0:02:20]} 18. Nd4 {[%clk 0:02:22]}  Nxc3 {[%clk 0:02:15]} 19. bxc3 {[%clk 0:02:21]}  Rxc3 {[%clk 0:02:16]} 20. Nxe6 {[%clk 0:02:13]}  Qxe6 {[%clk 0:02:17]} 21. Rb1 {[%clk 0:02:14]}  Qd6 {[%clk 0:02:08]} 22. Bd4 {[%clk 0:01:51]}  Rc4 {[%clk 0:01:30]} 23. Bxg7 {[%clk 0:01:48]}  Kxg7 {[%clk 0:01:31]} 24. c3 {[%clk 0:01:47]}  Nc6 {[%clk 0:01:31]} 25. Qxd5 {[%clk 0:01:32]}  Qxd5 {[%clk 0:01:22]} 26. Bxd5 {[%clk 0:01:33]}  Rxc3 {[%clk 0:01:22]} 27. Rxb7 {[%clk 0:01:32]}  Kf6 {[%clk 0:01:22]} 28. Rb6 {[%clk 0:01:25]}  Rc8 {[%clk 0:01:20]} 29. Re1 {[%clk 0:01:25]}  Kg7 {[%clk 0:01:02]} 30. Bxc6 {[%clk 0:01:22]}  R8xc6 {[%clk 0:01:02]} 31. Rxc6 {[%clk 0:01:23]}  Rxc6 {[%clk 0:01:03]} 32. Rxe7+ {[%clk 0:01:23]}  Kh6 {[%clk 0:01:04]} 33. Re2 {[%clk 0:01:23]}  Ra6 {[%clk 0:01:00]} 34. Ra2 {[%clk 0:01:22]}  g5 {[%clk 0:00:59]} 35. fxg5+ {[%clk 0:01:19]}  Kxg5 {[%clk 0:00:59]} 36. a5 {[%clk 0:01:20]}  h5 {[%clk 0:00:59]} 37. Ra4 {[%clk 0:01:19]}  Kf5 {[%clk 0:00:59]} 38. Kg2 {[%clk 0:01:19]}  Ke5 {[%clk 0:00:57]} 39. Kf3 {[%clk 0:01:20]}  Kf5 {[%clk 0:00:54]} 40. g4+ {[%clk 0:01:19]}  hxg4+ {[%clk 0:00:54]} 41. hxg4+ {[%clk 0:01:20]}  Kg5 {[%clk 0:00:55]} 42. Ke3 {[%clk 0:01:20]}  Kf6 {[%clk 0:00:51]} 43. Kd4 {[%clk 0:01:19]} 1-0


[Site "https://www.chess.com"]

[Event "Titled Tuesday Blitz November 29 Early 2022"]
[White "Bethke, Richard"]
[Black "Zaloznyy, Mike"]
[WhiteFideId "12959243"]
[BlackFideId "2023075"]
[WhiteElo "2369"]
[BlackElo "2126"]
[Result "1-0"]
[Round "03"]
[TimeControl "180+1"]
[Date "2022.11.30"]
[WhiteClock "0:00:54"]
[BlackClock "0:00:03"]

1. e4 {[%clk 0:02:32]}  c6 {[%clk 0:02:59]} 2. Nf3 {[%clk 0:02:32]}  d5 {[%clk 0:02:58]} 3. Nc3 {[%clk 0:02:30]}  dxe4 {[%clk 0:02:58]} 4. Nxe4 {[%clk 0:02:30]}  Nf6 {[%clk 0:02:58]} 5. Qe2 {[%clk 0:02:30]}  Nxe4 {[%clk 0:02:58]} 6. Qxe4 {[%clk 0:02:31]}  Nd7 {[%clk 0:02:58]} 7. Bc4 {[%clk 0:02:31]}  Nf6 {[%clk 0:02:58]} 8. Ne5 {[%clk 0:02:32]}  e6 {[%clk 0:02:58]} 9. Qe2 {[%clk 0:02:32]}  b5 {[%clk 0:02:58]} 10. Bd3 {[%clk 0:02:31]}  Qc7 {[%clk 0:02:57]} 11. a4 {[%clk 0:02:26]}  b4 {[%clk 0:02:45]} 12. b3 {[%clk 0:02:24]}  Bb7 {[%clk 0:02:29]} 13. Bb2 {[%clk 0:02:19]}  Bd6 {[%clk 0:02:26]} 14. O-O-O {[%clk 0:02:16]}  O-O {[%clk 0:02:05]} 15. g4 {[%clk 0:02:12]}  Nd5 {[%clk 0:02:04]} 16. Qe4 {[%clk 0:02:05]}  f5 {[%clk 0:01:42]} 17. Qe1 {[%clk 0:01:54]}  Nc3 {[%clk 0:01:34]} 18. dxc3 {[%clk 0:01:23]}  Bxe5 {[%clk 0:01:33]} 19. cxb4 {[%clk 0:01:24]}  Bxb2+ {[%clk 0:01:28]} 20. Kxb2 {[%clk 0:01:25]}  Rae8 {[%clk 0:01:18]} 21. Bc4 {[%clk 0:01:24]}  Kh8 {[%clk 0:01:13]} 22. Rg1 {[%clk 0:01:20]}  f4 {[%clk 0:01:00]} 23. Qc3 {[%clk 0:01:15]}  c5 {[%clk 0:00:53]} 24. bxc5 {[%clk 0:01:12]}  Qxc5 {[%clk 0:00:52]} 25. Rd7 {[%clk 0:01:12]}  Re7 {[%clk 0:00:45]} 26. Rgd1 {[%clk 0:01:12]}  Rfe8 {[%clk 0:00:31]} 27. b4 {[%clk 0:01:10]}  Qb6 {[%clk 0:00:23]} 28. a5 {[%clk 0:01:07]}  Qc6 {[%clk 0:00:17]} 29. Rxe7 {[%clk 0:00:58]}  Rxe7 {[%clk 0:00:17]} 30. Rd8+ {[%clk 0:00:59]}  Re8 {[%clk 0:00:18]} 31. b5 {[%clk 0:01:00]}  Rxd8 {[%clk 0:00:03]} 32. bxc6 {[%clk 0:00:55]}  Bxc6 {[%clk 0:00:04]} 33. Bxe6 {[%clk 0:00:55]}  Rb8+ {[%clk 0:00:04]} 34. Bb3 {[%clk 0:00:55]}  Ba4 {[%clk 0:00:03]} 35. Qe5 {[%clk 0:00:54]} 1-0


[Site "https://www.chess.com"]